bitfinex/quotes_BTCUSD_20241018
["timestamp","ask_amount","ask_price","bid_price","bid_amount"]
[1729277840733,0.17048135,68798.0,68797.0,0.001829]
[1729277840941,0.15962058,68798.0,68797.0,0.001829]
[1729277841353,0.17048365,68798.0,68797.0,0.001829]
[1729277841992,0.0002,68794.0,68780.0,0.000829]
[1729277842194,0.41853552,68798.0,68784.0,0.21809141]
[1729277842195,0.0002,68786.0,68784.0,0.21809141]
[1729277842389,0.0002,68786.0,68780.0,0.000829]
[1729277843129,0.0002,68783.0,68780.0,0.000829]
[1729277843329,0.023,68789.0,68780.0,0.000829]
[1729277843330,0.17195915,68781.0,68780.0,0.000829]
[1729277843756,0.17195915,68781.0,68780.0,0.082529]
[1729277844941,0.17195915,68781.0,68780.0,0.083529]
[1729277847177,0.17195915,68781.0,68780.0,0.001829]
[1729277848206,0.17215915,68781.0,68780.0,0.001829]
[1729277848390,0.18303175,68781.0,68780.0,0.001829]
[1729277848925,0.18283175,68781.0,68780.0,0.001829]
[1729277850336,0.18303175,68781.0,68780.0,0.001829]
[1729277851534,0.17215915,68781.0,68780.0,0.001829]
[1729277851743,0.17195915,68781.0,68780.0,0.001829]
[1729277851950,0.33592237,68781.0,68780.0,0.001829]
[1729277852217,0.64186339,68781.0,68780.0,0.001829]
[1729277853021,0.64186339,68781.0,68780.0,0.000829]
[1729277853432,0.64186339,68781.0,68780.0,0.001829]
[1729277853900,0.64186339,68781.0,68780.0,0.000829]
[1729277854321,0.64186339,68781.0,68780.0,0.001829]
[1729277854739,0.6886677,68781.0,68780.0,0.001829]
[1729277854943,0.62448136,68781.0,68780.0,0.001829]
[1729277855307,0.64184294,68781.0,68780.0,0.001829]
[1729277855540,0.62448136,68781.0,68780.0,0.001829]
[1729277855943,0.61090165,68781.0,68780.0,0.001829]
[1729277859067,0.60002081,68781.0,68780.0,0.001829]
[1729277859310,0.6417914,68781.0,68780.0,0.001829]
[1729277860083,0.6417914,68781.0,68780.0,0.000829]
[1729277860288,0.0002,68769.0,68768.0,0.07412473]
[1729277860508,0.17215915,68769.0,68768.0,0.07412473]
[1729277860912,0.17195915,68769.0,68768.0,0.07412473]
[1729277861110,0.17195915,68769.0,68767.0,0.000829]
[1729277861312,0.17195915,68768.0,68767.0,0.000829]
[1729277863085,0.17195915,68768.0,68767.0,0.001829]
[1729277865859,0.17215915,68768.0,68767.0,0.001829]
[1729277866435,0.17195915,68768.0,68767.0,0.001829]
[1729277868132,0.17215915,68768.0,68767.0,0.001829]
[1729277868713,0.17195915,68768.0,68767.0,0.001829]
[1729277869155,0.17215915,68768.0,68767.0,0.001829]
[1729277869369,0.18937507,68768.0,68767.0,0.001829]
[1729277869566,0.20023315,68768.0,68767.0,0.001829]
[1729277869784,0.21380589,68768.0,68767.0,0.001829]
[1729277870226,0.39293315,68768.0,68767.0,0.001829]
[1729277870426,0.42023952,68768.0,68767.0,0.001829]
[1729277870649,0.22753952,68768.0,68767.0,0.001829]
[1729277870871,0.21396349,68768.0,68767.0,0.001829]
[1729277871116,0.21016653,68768.0,68767.0,0.001829]
[1729277871324,0.22753972,68768.0,68767.0,0.000829]
[1729277871731,0.22753972,68768.0,68767.0,0.001829]
[1729277872628,0.26558369,68768.0,68767.0,0.001829]
[1729277873525,0.22753972,68768.0,68767.0,0.001829]
[1729277873981,0.20996653,68768.0,68767.0,0.001829]
[1729277874110,0.18281723,68768.0,68767.0,0.001829]
[1729277876389,0.34930523,68768.0,68767.0,0.001829]
[1729277876596,0.19640523,68768.0,68767.0,0.001829]
[1729277877009,0.17195915,68768.0,68767.0,0.001829]
[1729277877513,0.14895915,68768.0,68767.0,0.382229]
[1729277878135,0.14895915,68768.0,68767.0,0.381229]
[1729277878517,0.14895915,68768.0,68767.0,0.382229]
[1729277881797,0.15061915,68768.0,68767.0,0.382229]
[1729277883733,0.17361915,68768.0,68767.0,0.083229]
[1729277893950,0.15061915,68768.0,68767.0,0.083229]
[1729277894176,0.15061915,68768.0,68767.0,0.47364154]
[1729277894373,0.15061915,68768.0,68767.0,0.365829]
[1729277894955,0.15061915,68768.0,68767.0,0.364829]
[1729277895160,0.15061915,68768.0,68767.0,0.4740405]
[1729277895537,0.15061915,68768.0,68767.0,0.45239088]
[1729277895763,0.15061915,68768.0,68767.0,0.45139088]
[1729277895943,0.15061915,68768.0,68767.0,0.45239088]
[1729277896142,0.15061915,68768.0,68767.0,0.365829]
[1729277896452,0.15061915,68768.0,68767.0,0.45237453]
[1729277896655,0.15061915,68768.0,68767.0,0.365829]
[1729277897632,0.15061915,68768.0,68767.0,0.364829]
[1729277897835,0.15061915,68768.0,68767.0,0.365829]
[1729277898389,0.15061915,68768.0,68767.0,0.183229]
[1729277898796,0.15061915,68768.0,68767.0,0.083229]
[1729277899945,0.15061915,68768.0,68767.0,0.267929]
[1729277900208,0.15061915,68768.0,68767.0,0.367929]
[1729277901060,0.15061915,68768.0,68767.0,0.4761225]
[1729277901295,0.15061915,68768.0,68767.0,0.367929]
[1729277901982,0.15061915,68768.0,68767.0,0.369729]
[1729277902627,0.15061915,68768.0,68767.0,0.4778408]
[1729277903920,0.15061915,68768.0,68767.0,0.369729]
[1729277904166,0.15061915,68768.0,68767.0,0.4138066]
[1729277904381,0.15061915,68768.0,68767.0,0.5436388]
[1729277904603,0.15061915,68768.0,68767.0,0.4138066]
[1729277905483,0.15061915,68768.0,68767.0,0.369729]
[1729277906375,0.15061915,68768.0,68767.0,0.41378902]
[1729277906586,0.15061915,68768.0,68767.0,0.369729]
[1729277907275,0.15061915,68768.0,68767.0,0.41378655]
[1729277907510,0.00166,68768.0,68767.0,0.369729]
[1729277907736,0.21809141,68785.0,68779.0,0.1]
[1729277907965,0.00836265,68784.0,68780.0,0.0797]
[1729277908177,0.00836265,68784.0,68781.0,0.1785]
[1729277909465,0.00836265,68784.0,68781.0,0.0785]
[1729277910589,0.00836265,68784.0,68781.0,0.0795]
[1729277913704,0.00836265,68784.0,68781.0,0.0813]
[1729277913705,0.14895915,68783.0,68781.0,0.0813]
[1729277914126,0.14895915,68783.0,68781.0,0.0795]
[1729277915804,0.14895915,68783.0,68781.0,0.0785]
[1729277915996,0.14895915,68783.0,68781.0,0.0795]
[1729277918617,0.14895915,68782.0,68781.0,0.0795]
[1729277919570,0.14895915,68782.0,68781.0,0.0785]
[1729277919968,0.14895915,68782.0,68781.0,0.0795]
[1729277921017,0.14895915,68782.0,68781.0,0.0813]
[1729277922018,0.14895915,68782.0,68781.0,0.0795]
[1729277926612,0.14895915,68782.0,68781.0,0.0813]
[1729277930793,0.14895915,68782.0,68781.0,0.1813]
[1729277931283,0.14895915,68782.0,68781.0,0.1795]
[1729277933615,0.14895915,68782.0,68781.0,0.0795]
[1729277934482,0.14895915,68782.0,68781.0,0.1795]
[1729277934759,0.14895915,68782.0,68781.0,0.22265018]
[1729277935338,0.14895915,68782.0,68781.0,0.1795]
[1729277936481,0.14895915,68782.0,68781.0,0.24422527]
[1729277936679,0.14895915,68782.0,68781.0,0.29017916]
[1729277937292,0.14895915,68782.0,68781.0,0.22545389]
[1729277937474,0.14895915,68782.0,68781.0,0.26685339]
[1729277937675,0.14895915,68782.0,68781.0,0.1795]
[1729277937872,0.01002065,68784.0,68783.0,0.3614]
[1729277938103,0.01002065,68784.0,68783.0,0.40555253]
[1729277940622,0.21809141,68796.0,68795.0,0.0008]
[1729277940834,0.36705056,68796.0,68795.0,0.42295253]
[1729277941034,0.14895915,68796.0,68795.0,0.42295253]
[1729277943326,0.001658,68797.0,68796.0,0.3762]
[1729277943487,0.001658,68797.0,68796.0,0.42035253]
[1729277945253,0.001658,68797.0,68796.0,0.22105253]
[1729277945479,0.15061715,68797.0,68796.0,0.16466467]
[1729277945751,0.15061715,68797.0,68795.0,0.0431242]
[1729277945981,0.14895915,68796.0,68793.0,0.0431242]
[1729277946445,0.14895915,68796.0,68793.0,0.0449242]
[1729277946651,0.14895915,68796.0,68793.0,0.0431242]
[1729277947358,0.14895915,68796.0,68793.0,0.1431242]
[1729277947622,0.001658,68797.0,68796.0,0.3676]
[1729277947840,0.001658,68797.0,68796.0,1.4566517]
[1729277948524,0.001658,68797.0,68796.0,1.50061149]
[1729277951459,0.001658,68797.0,68796.0,1.62982305]
[1729277953160,0.001658,68797.0,68796.0,1.50061149]
[1729277953857,0.001658,68797.0,68796.0,1.52076403]
[1729277964175,0.001658,68797.0,68796.0,0.43354027]
[1729277967963,0.001658,68797.0,68796.0,1.71324569]
[1729277968176,0.001658,68797.0,68796.0,1.52261257]
[1729277969899,0.21809141,68819.0,68818.0,0.0018]
[1729277970133,0.21809141,68819.0,68818.0,1.4482571]
[1729277970372,0.00166,68822.0,68821.0,0.0791]
[1729277970637,0.276458,68851.0,68821.0,0.0791]
[1729277970638,0.20626192,68828.0,68821.0,0.22305979]
[1729277970872,0.20626192,68828.0,68827.0,0.23062214]
[1729277971101,0.20626192,68828.0,68827.0,1.23430399]
[1729277971354,0.001658,68851.0,68834.0,0.0018]
[1729277971606,0.36705056,68835.0,68834.0,0.0018]
[1729277971848,0.14895915,68835.0,68834.0,0.0018]
[1729277972076,0.14895915,68835.0,68834.0,0.04472346]
[1729277972560,0.14895915,68835.0,68834.0,0.0018]
[1729277972805,0.14895915,68835.0,68834.0,0.04472346]
[1729277973084,0.14895915,68835.0,68834.0,0.0018]
[1729277977802,0.14895915,68835.0,68828.0,0.0018]
[1729277978050,0.14895915,68834.0,68828.0,0.0018]
[1729277979479,0.21809141,68830.0,68826.0,0.0018]
[1729277979726,0.14895915,68829.0,68822.0,0.0018]
[1729277980936,0.14895915,68829.0,68828.0,0.0018]
[1729277981166,0.21809141,68841.0,68832.0,0.0018]
[1729277981414,0.21809141,68833.0,68832.0,0.0018]
[1729277981661,0.15061915,68837.0,68833.0,0.1]
[1729277981943,0.14895915,68836.0,68833.0,0.1]
[1729277982637,0.14895915,68836.0,68832.0,0.0018]
[1729277983117,0.14895915,68836.0,68832.0,0.04470498]
[1729277983618,0.14895915,68836.0,68833.0,0.04290498]
[1729277983861,0.14895915,68836.0,68833.0,0.14290498]
[1729277984567,0.14895915,68836.0,68833.0,0.1]
[1729277985053,0.14895915,68836.0,68831.0,0.0018]
[1729277986757,0.14895915,68836.0,68834.0,0.0018]
[1729277987231,0.15061715,68836.0,68834.0,0.0018]
[1729277988429,0.15061715,68836.0,68835.0,5.15]
[1729277988915,0.15061715,68836.0,68835.0,5.1518]
[1729277989156,0.15061715,68836.0,68835.0,5.15]
[1729277990115,0.15061715,68836.0,68835.0,5.1518]
[1729277990606,0.15061715,68836.0,68835.0,5.15]
[1729277995111,0.15061715,68836.0,68835.0,5.16241908]
[1729277995346,0.15061715,68836.0,68835.0,5.16421908]
[1729277995580,0.15061715,68836.0,68835.0,5.24201908]
[1729277996090,0.15061715,68836.0,68835.0,5.24021908]
[1729277996566,0.15061715,68836.0,68835.0,5.16241908]
[1729277997336,0.15061715,68836.0,68835.0,5.34971908]
[1729277997537,0.15061715,68836.0,68835.0,5.35151908]
[1729277998020,0.15061715,68836.0,68835.0,5.39445011]
[1729277998776,0.15061715,68836.0,68835.0,5.39541903]
[1729277999262,0.15061715,68836.0,68835.0,5.5614811]
[1729278000012,0.001658,68836.0,68835.0,6.56406903]
[1729278000268,0.000848,68836.0,68835.0,6.6499311]
[1729278000508,0.14980715,68836.0,68835.0,5.27409995]
[1729278000748,0.14980715,68836.0,68835.0,1.82945]
[1729278001417,0.14980715,68836.0,68835.0,1.732776]
[1729278002201,0.14980715,68836.0,68835.0,3.459195]
[1729278002442,0.14980715,68836.0,68835.0,4.424791]
[1729278002703,0.14980715,68836.0,68835.0,4.207462]
[1729278003171,0.14980715,68836.0,68835.0,4.25148683]
[1729278004135,0.14980715,68836.0,68835.0,3.92983338]
[1729278004605,0.14980715,68836.0,68835.0,0.78207738]
[1729278004850,0.14980715,68836.0,68825.0,0.1093358]
[1729278004851,0.0813,68835.0,68824.0,0.04301432]
[1729278005225,0.0813,68835.0,68821.0,0.000829]
[1729278005226,0.37035915,68829.0,68821.0,0.000829]
[1729278005503,0.31528917,68829.0,68821.0,0.000829]
[1729278005756,0.32596045,68829.0,68821.0,0.000829]
[1729278006044,0.31237128,68829.0,68821.0,0.000829]
[1729278006262,0.3015,68829.0,68821.0,0.000829]
[1729278006523,0.45045915,68829.0,68821.0,0.000829]
[1729278006993,0.37035915,68829.0,68821.0,0.000829]
[1729278007489,0.37035915,68829.0,68821.0,0.100829]
[1729278012293,0.37055915,68829.0,68821.0,0.000829]
[1729278013951,0.44995915,68829.0,68821.0,0.000829]
[1729278016301,0.44995915,68829.0,68821.0,0.100829]
[1729278018311,0.44995915,68829.0,68805.0,0.21809141]
[1729278018312,0.0002,68808.0,68805.0,0.21809141]
[1729278018541,0.17215915,68806.0,68805.0,0.21809141]
[1729278018791,0.17195915,68806.0,68805.0,0.21809141]
[1729278019065,0.17195915,68806.0,68798.0,0.24081767]
[1729278019066,0.023,68805.0,68798.0,0.24081767]
[1729278019307,0.023,68805.0,68798.0,0.21809141]
[1729278019308,0.14895915,68799.0,68798.0,0.21809141]
[1729278019533,0.14895915,68799.0,68789.0,0.30049141]
[1729278019534,0.14895915,68799.0,68790.0,0.02273425]
[1729278019780,0.14895915,68791.0,68790.0,0.02273425]
[1729278020036,0.14895915,68791.0,68784.0,0.000829]
[1729278020274,0.14895915,68785.0,68784.0,0.000829]
[1729278020770,0.14895915,68785.0,68784.0,3.313026]
[1729278021491,0.14895915,68785.0,68784.0,3.413026]
[1729278022446,0.14895915,68785.0,68784.0,2.749063]
[1729278022678,0.14895915,68785.0,68784.0,2.653217]
[1729278023680,0.14895915,68785.0,68784.0,2.927517]
[1729278025400,0.21809141,68796.0,68786.0,0.0018]
[1729278025638,0.21809141,68789.0,68787.0,5.1307]
[1729278025888,0.14895915,68788.0,68787.0,0.1807]
[1729278026580,0.14895915,68788.0,68787.0,5.2307]
[1729278026788,0.14895915,68788.0,68787.0,5.2325]
[1729278028601,0.14895915,68788.0,68787.0,1.676026]
[1729278029070,0.14895915,68788.0,68787.0,1.677826]
[1729278031393,0.14895915,68788.0,68787.0,1.676026]
[1729278031623,0.14895915,68788.0,68787.0,0.912808]
[1729278031891,0.14895915,68788.0,68787.0,0.8184]
[1729278032160,0.14895915,68788.0,68787.0,0.67048]
[1729278033562,0.14895915,68788.0,68787.0,0.671308]
[1729278033796,0.14895915,68788.0,68787.0,0.673108]
[1729278035044,0.1938,68813.0,68787.0,0.673108]
[1729278035045,0.21809141,68802.0,68796.0,0.0008]
[1729278035281,0.21809141,68802.0,68788.0,0.1]
[1729278035282,0.21809141,68794.0,68788.0,0.1018]
[1729278035531,0.21809141,68802.0,68790.0,0.1]
[1729278035777,0.21809141,68802.0,68792.0,0.1]
[1729278036027,0.21809141,68802.0,68793.0,3.065945]
[1729278036268,0.21809141,68802.0,68794.0,2.230954]
[1729278036501,0.14895915,68795.0,68794.0,0.1]
[1729278037243,0.14895915,68795.0,68790.0,0.0018]
[1729278037474,0.14895915,68795.0,68792.0,0.1]
[1729278037721,0.14895915,68795.0,68794.0,0.1]
[1729278037969,0.14895915,68795.0,68794.0,2.972096]
[1729278038466,0.14895915,68795.0,68794.0,2.376186]
[1729278038945,0.14895915,68795.0,68794.0,2.230954]
[1729278039176,0.14895915,68795.0,68794.0,2.216854]
[1729278040566,0.14895915,68795.0,68794.0,2.202745]
[1729278042486,0.14895915,68795.0,68794.0,2.066451]
[1729278043852,0.14895915,68795.0,68794.0,1.791636]
[1729278047374,0.14895915,68795.0,68794.0,1.793436]
[1729278048257,0.14737099,68795.0,68794.0,1.81351944]
[1729278048496,0.14617987,68795.0,68794.0,1.89161944]
[1729278048719,0.14538579,68795.0,68794.0,1.89161944]
[1729278048929,0.14479023,68795.0,68794.0,1.89161944]
[1729278049140,0.14300355,68795.0,68794.0,2.98071974]
[1729278049351,0.14300355,68795.0,68794.0,3.20730082]
[1729278049566,0.14300355,68795.0,68794.0,3.2718377]
[1729278050281,0.14300355,68795.0,68794.0,3.31486229]
[1729278050544,0.14300355,68795.0,68794.0,3.20730082]
[1729278051475,0.14219496,68795.0,68794.0,3.20730082]
[1729278051664,0.1416559,68795.0,68794.0,3.20730082]
[1729278051873,0.14111684,68795.0,68794.0,3.20730082]
[1729278052091,0.14003872,68795.0,68794.0,3.20730082]
[1729278052308,0.13976919,68795.0,68794.0,3.20730082]
[1729278052511,0.13923013,68795.0,68794.0,3.20730082]
[1729278052724,0.13869107,68795.0,68794.0,3.20730082]
[1729278052936,0.13815201,68795.0,68794.0,3.20730082]
[1729278053157,0.13761295,68795.0,68794.0,3.20730082]
[1729278053379,0.13707389,68795.0,68794.0,3.20730082]
[1729278053642,0.21809141,68806.0,68805.0,0.0018]
[1729278053856,0.21809141,68806.0,68805.0,2.049379]
[1729278053857,0.36705056,68806.0,68805.0,2.049379]
[1729278054065,0.36705056,68806.0,68805.0,0.1018]
[1729278054278,0.14895915,68806.0,68805.0,2.049377]
[1729278054726,0.14895915,68806.0,68805.0,1.80169828]
[1729278055253,0.14895915,68806.0,68805.0,1.758575]
[1729278055491,0.14895915,68806.0,68805.0,1.80169828]
[1729278056469,0.14895915,68806.0,68805.0,1.712029]
[1729278057157,0.14895915,68806.0,68805.0,0.752574]
[1729278057396,0.14895915,68806.0,68799.0,0.1]
[1729278057652,0.14895915,68803.0,68801.0,0.1]
[1729278057860,0.14895915,68803.0,68802.0,1.22874]
[1729278058073,0.14895915,68803.0,68802.0,1.139936]
[1729278059952,0.14895915,68803.0,68802.0,1.070077]
[1729278060646,0.14895915,68803.0,68798.0,0.04318074]
[1729278060886,0.21809141,68813.0,68794.0,0.08719049]
[1729278060887,0.023,68798.0,68794.0,0.000829]
[1729278061140,0.17195915,68795.0,68794.0,0.000829]
[1729278067866,0.17215915,68795.0,68794.0,0.000829]
[1729278068119,0.17195915,68795.0,68794.0,0.000829]
[1729278069548,0.17361715,68795.0,68794.0,0.000829]
[1729278071281,0.17381715,68795.0,68794.0,0.000829]
[1729278071535,0.17361715,68795.0,68794.0,0.000829]
[1729278072493,0.17381715,68795.0,68794.0,0.000829]
[1729278072737,0.17361715,68795.0,68794.0,0.000829]
[1729278076960,0.38789886,68795.0,68794.0,0.000829]
[1729278077197,0.43931715,68795.0,68794.0,0.000829]
[1729278078124,0.46369404,68795.0,68794.0,0.000829]
[1729278078342,0.45015132,68795.0,68794.0,0.000829]
[1729278078563,0.43931715,68795.0,68794.0,0.000829]
[1729278078775,0.43931715,68795.0,68790.0,0.1]
[1729278078776,0.0002,68791.0,68790.0,0.06429918]
[1729278079027,0.17215915,68791.0,68790.0,0.06429918]
[1729278079977,0.0002,68788.0,68787.0,0.000828]
[1729278080190,0.17215915,68788.0,68787.0,0.000828]
[1729278081126,0.35675915,68788.0,68787.0,0.000828]
[1729278081358,0.47737589,68788.0,68787.0,0.000828]
[1729278081582,0.80049079,68788.0,68787.0,0.000828]
[1729278081791,0.83949257,68788.0,68787.0,0.000828]
[1729278082056,0.69094593,68788.0,68787.0,0.000828]
[1729278082277,0.77764349,68788.0,68787.0,0.000828]
[1729278082496,0.75597544,68788.0,68787.0,0.000828]
[1729278082930,0.75597544,68788.0,68774.0,0.31809141]
[1729278082931,0.3014,68775.0,68774.0,0.31809141]
[1729278083141,0.3014,68775.0,68774.0,0.1]
[1729278083142,0.45035915,68775.0,68774.0,0.1]
[1729278084436,0.0002,68773.0,68763.0,0.07115582]
[1729278084680,0.023,68774.0,68764.0,0.0797]
[1729278084933,0.14895915,68765.0,68764.0,0.0797]
[1729278085424,0.14895915,68765.0,68764.0,0.0815]
[1729278085661,0.14895915,68765.0,68764.0,0.879502]
[1729278085871,0.14895915,68765.0,68764.0,1.92237765]
[1729278086087,0.14895915,68765.0,68764.0,1.71930865]
[1729278086537,0.14895915,68765.0,68764.0,1.72110865]
[1729278087721,0.14895915,68765.0,68764.0,0.18091765]
[1729278087944,0.14895915,68765.0,68764.0,0.08091765]
[1729278088194,0.14895915,68765.0,68764.0,0.38753565]
[1729278089749,0.14895915,68765.0,68764.0,0.29547865]
[1729278090830,0.14895915,68765.0,68764.0,0.29367865]
[1729278091270,0.14895915,68765.0,68764.0,0.29547865]
[1729278093277,0.13769604,68765.0,68764.0,0.48250765]
[1729278098879,0.21809141,68782.0,68774.0,0.0812]
[1729278099103,0.14895915,68780.0,68776.0,0.1]
[1729278099329,0.14895915,68780.0,68778.0,0.1806]
[1729278099551,0.14895915,68780.0,68779.0,2.034393]
[1729278099774,0.14895915,68780.0,68779.0,1.274855]
[1729278101092,0.14895915,68780.0,68779.0,1.31795512]
[1729278101353,0.14895915,68780.0,68779.0,1.51235512]
[1729278101579,0.14895915,68780.0,68779.0,1.469255]
[1729278102681,0.14895915,68780.0,68779.0,2.5585919]
[1729278103324,0.14895915,68780.0,68779.0,2.64479214]
[1729278103572,0.14895915,68780.0,68779.0,2.5585919]
[1729278104465,0.14895915,68780.0,68779.0,2.6663422]
[1729278105431,0.14895915,68780.0,68779.0,2.66656624]
[1729278105646,0.15061915,68780.0,68779.0,2.66656624]
[1729278106301,0.15061915,68780.0,68779.0,1.469255]
[1729278106522,0.15061915,68780.0,68779.0,1.40064934]
[1729278108729,0.15061915,68780.0,68779.0,1.292675]
[1729278109230,0.15061915,68780.0,68779.0,1.40064934]
[1729278109453,0.15061915,68780.0,68779.0,2.3820176]
[1729278109890,0.15061915,68780.0,68779.0,1.40064934]
[1729278110598,0.15061915,68780.0,68779.0,1.292675]
[1729278110818,0.15061915,68780.0,68779.0,5.125809]
[1729278111037,0.15061915,68780.0,68779.0,4.311595]
[1729278112585,0.15061915,68780.0,68779.0,3.942898]
[1729278112801,0.15061915,68780.0,68779.0,0.724192]
[1729278113064,0.15061915,68780.0,68779.0,0.469557]
[1729278114224,0.15061915,68780.0,68779.0,0.51274331]
[1729278114664,0.15061915,68780.0,68779.0,0.469557]
[1729278115134,0.15061915,68780.0,68779.0,0.55591691]
[1729278115386,0.15061915,68780.0,68779.0,0.469557]
[1729278115632,0.15061915,68780.0,68779.0,0.53431154]
[1729278116293,0.15061915,68780.0,68779.0,0.469557]
[1729278116785,0.15061915,68780.0,68779.0,0.53431151]
[1729278117025,0.15061915,68780.0,68779.0,0.469557]
[1729278117251,0.15061915,68780.0,68779.0,0.53431151]
[1729278117457,0.15061915,68780.0,68779.0,0.469557]
[1729278119199,0.15061915,68780.0,68779.0,0.53431151]
[1729278119833,0.15061915,68780.0,68779.0,0.469557]
[1729278120707,0.15061915,68780.0,68779.0,0.51274263]
[1729278120934,0.15061915,68780.0,68779.0,0.469557]
[1729278125424,0.15061915,68780.0,68779.0,0.1018]
[1729278125664,0.15061915,68780.0,68779.0,0.767861]
[1729278126103,0.15061915,68780.0,68779.0,0.747861]
[1729278126587,0.17361915,68780.0,68779.0,0.0018]
[1729278130308,0.15061915,68780.0,68779.0,0.0018]
[1729278130534,0.15061915,68780.0,68779.0,0.1835]
[1729278130748,0.15061915,68780.0,68779.0,0.1018]
[1729278131198,0.15061915,68780.0,68779.0,1.331612]
[1729278132505,0.15061915,68780.0,68779.0,1.33002586]
[1729278132726,0.15061915,68780.0,68779.0,1.231039]
[1729278133425,0.15061915,68780.0,68779.0,1.187131]
[1729278134540,0.15061915,68780.0,68779.0,1.23036786]
[1729278135021,0.15061915,68780.0,68779.0,1.23042986]
[1729278135457,0.15061915,68780.0,68779.0,1.187131]
[1729278135708,0.15061915,68780.0,68779.0,1.23044056]
[1729278136396,0.15061915,68780.0,68779.0,1.187131]
[1729278136605,0.15061915,68780.0,68779.0,1.33449535]
[1729278136813,0.15061915,68780.0,68779.0,1.31377921]
[1729278137029,0.15061915,68780.0,68779.0,1.42205313]
[1729278137513,0.15061915,68780.0,68779.0,1.31377921]
[1729278138414,0.15061915,68780.0,68779.0,2.40311191]
[1729278141870,0.00166,68780.0,68779.0,2.71964061]
[1729278142524,0.00166,68780.0,68779.0,2.58971191]
[1729278149358,0.00166,68780.0,68779.0,1.44394072]
[1729278149359,0.15061915,68780.0,68779.0,1.44394072]
[1729278149581,0.15061915,68780.0,68779.0,1.31377921]
[1729278149831,0.15061915,68780.0,68779.0,1.23137921]
[1729278150287,0.15061915,68780.0,68779.0,1.187131]
[1729278150972,0.15061915,68780.0,68779.0,1.23138762]
[1729278151870,0.15061915,68780.0,68779.0,1.187131]
[1729278152101,0.15061915,68780.0,68779.0,0.14605833]
[1729278152782,0.15061915,68780.0,68779.0,2.52734633]
[1729278154139,0.15061915,68780.0,68779.0,2.483088]
[1729278154859,0.15061915,68780.0,68779.0,2.52734727]
[1729278156514,0.15061915,68780.0,68779.0,2.483088]
[1729278157394,0.15061915,68780.0,68779.0,2.02023173]
[1729278158060,0.15061915,68780.0,68779.0,1.14522173]
[1729278158303,0.15061915,68780.0,68779.0,1.100965]
[1729278159503,0.15061915,68780.0,68779.0,0.0018]
[1729278160211,0.15061915,68780.0,68778.0,0.1]
[1729278160459,0.15061915,68780.0,68765.0,0.00083]
[1729278160460,0.2756,68774.0,68765.0,0.00083]
[1729278160740,0.17195915,68766.0,68765.0,0.00083]
[1729278160924,0.2986,68766.0,68765.0,0.00083]
[1729278161178,0.33667948,68766.0,68765.0,0.00083]
[1729278161418,0.45842101,68766.0,68765.0,0.00083]
[1729278161889,0.53143793,68766.0,68765.0,0.00083]
[1729278162109,0.53163793,68766.0,68765.0,0.00083]
[1729278162332,0.51806052,68766.0,68765.0,0.00083]
[1729278162585,0.47219842,68766.0,68765.0,0.00083]
[1729278163038,0.48575926,68766.0,68765.0,0.00083]
[1729278163267,0.45862101,68766.0,68765.0,0.00083]
[1729278164209,0.0002,68760.0,68755.0,0.000829]
[1729278164458,0.44355915,68760.0,68757.0,0.1]
[1729278164675,0.0002,68756.0,68755.0,0.000829]
[1729278164905,0.14915915,68756.0,68755.0,0.000829]
[1729278165157,0.17215915,68756.0,68755.0,0.000829]
[1729278168561,0.21651507,68756.0,68755.0,0.000829]
[1729278168773,0.17215915,68756.0,68755.0,0.000829]
[1729278170081,0.17195915,68756.0,68755.0,0.000829]
[1729278172144,0.14895915,68756.0,68755.0,0.000829]
[1729278172351,0.14895915,68756.0,68755.0,0.100829]
[1729278173484,0.17195915,68756.0,68755.0,0.000829]
[1729278174152,0.17195915,68756.0,68755.0,0.100829]
[1729278174371,0.17195915,68756.0,68755.0,0.000829]
[1729278175091,0.17195915,68756.0,68755.0,0.100829]
[1729278176043,0.17195915,68756.0,68755.0,0.000829]
[1729278176522,0.17215915,68756.0,68755.0,0.000829]
[1729278176746,0.17195915,68756.0,68755.0,0.000829]
[1729278177490,0.17195915,68756.0,68755.0,0.100829]
[1729278177700,0.17195915,68756.0,68755.0,0.000829]
[1729278177894,0.17195915,68756.0,68755.0,0.100829]
[1729278178383,0.17195915,68756.0,68755.0,0.000829]
[1729278178829,0.17195915,68756.0,68755.0,0.100829]
[1729278179451,0.17195915,68756.0,68755.0,0.000829]
[1729278179903,0.17195915,68756.0,68755.0,0.100829]
[1729278180321,0.17195915,68756.0,68755.0,0.000829]
[1729278180555,0.17195915,68756.0,68755.0,0.100829]
[1729278181024,0.17195915,68756.0,68755.0,0.000829]
[1729278181241,0.17195915,68756.0,68755.0,0.100829]
[1729278181458,0.17195915,68756.0,68755.0,0.000829]
[1729278182354,0.17195915,68756.0,68755.0,0.100829]
[1729278182954,0.17195915,68756.0,68755.0,0.000829]
[1729278183162,0.21631506,68756.0,68755.0,0.081229]
[1729278183398,0.14895915,68756.0,68755.0,0.08593788]
[1729278183623,0.14895915,68756.0,68755.0,0.081229]
[1729278184274,0.14895915,68756.0,68755.0,0.000829]
[1729278184949,0.17195915,68756.0,68755.0,0.000829]
[1729278185438,0.1827757,68756.0,68755.0,0.000829]
[1729278185689,0.17195915,68756.0,68755.0,0.000829]
[1729278187316,0.18279159,68756.0,68755.0,0.000829]
[1729278188465,0.1963471,68756.0,68755.0,0.000829]
[1729278189258,0.21375615,68756.0,68755.0,0.000829]
[1729278190179,0.23462472,68756.0,68755.0,0.000829]
[1729278190925,0.43638715,68756.0,68755.0,0.000829]
[1729278191137,0.51458715,68756.0,68755.0,0.000829]
[1729278191355,0.54543902,68756.0,68755.0,0.000829]
[1729278194810,0.2783543,68756.0,68755.0,0.000829]
[1729278195261,0.2782036,68756.0,68755.0,0.000829]
[1729278195496,0.23344117,68756.0,68755.0,0.000829]
[1729278195737,0.22617244,68756.0,68755.0,0.000829]
[1729278196412,0.1908045,68756.0,68755.0,0.000829]
[1729278196878,0.19079982,68756.0,68755.0,0.000829]
[1729278197317,0.17339537,68756.0,68755.0,0.000829]
[1729278198515,0.19639537,68756.0,68755.0,0.000829]
[1729278198727,0.21379833,68756.0,68755.0,0.000829]
[1729278198932,0.19639537,68756.0,68755.0,0.000829]
[1729278201707,0.15983986,68756.0,68755.0,0.082029]
[1729278201968,0.14895915,68756.0,68755.0,0.277729]
[1729278202210,0.14895915,68756.0,68755.0,0.950535]
[1729278202451,0.14895915,68756.0,68755.0,0.582817]